bitfinex/quotes_ETHUSD_20251127
["timestamp","ask_amount","ask_price","bid_price","bid_amount"]
[1764210683411,0.3025541,3073.4,3072.5,0.4698]
[1764210683561,0.30249078,3073.3,3072.6,0.21]
[1764210683904,0.72559411,3073.7,3072.6,0.21]
[1764210684185,0.30248088,3073.6,3072.2,0.21]
[1764210684389,0.30248088,3073.5,3072.7,0.4698]
[1764210684601,0.30248088,3073.4,3072.7,0.4698]
[1764210684908,6.50841367,3073.9,3072.7,0.4698]
[1764210685107,0.30247261,3073.8,3073.3,0.4621]
[1764210685292,0.98356124,3073.8,3073.3,0.9319]
[1764210685622,3.25351379,3073.6,3073.3,0.4621]
[1764210685923,0.1553,3073.4,3072.5,0.4698]
[1764210686078,0.30237814,3073.4,3072.5,0.4698]
[1764210686279,0.30237814,3073.4,3072.2,0.6798]
[1764210686485,0.55767814,3073.4,3072.2,0.4698]
[1764210686720,0.30237814,3073.3,3072.3,0.4698]
[1764210687279,0.1,3073.1,3072.1,0.197]
[1764210687733,6.81046442,3073.1,3072.2,0.4698]
[1764210687921,6.50808628,3073.1,3072.2,0.4698]
[1764210688393,0.3023579,3073.0,3072.2,0.4698]
[1764210688589,10.41293805,3073.1,3072.2,0.4698]
[1764210688781,0.30235424,3073.0,3072.2,0.4698]
[1764210689717,6.61348996,3073.1,3072.1,0.197]
[1764210689882,0.30233941,3073.0,3072.1,0.197]
[1764210690084,0.30233941,3073.0,3072.1,0.6668]
[1764210690603,0.30233941,3073.0,3072.2,0.4698]
[1764210690789,3.25405674,3073.1,3072.2,0.4698]
[1764210691195,6.50811348,3073.1,3072.2,0.4698]
[1764210691392,6.5072393,3073.5,3072.2,0.4698]
[1764210691593,0.30239092,3073.4,3072.2,0.4698]
[1764210691804,3.25383138,3073.3,3072.3,0.39218948]
[1764210692026,0.72559411,3073.8,3072.3,0.39218948]
[1764210692027,3.25340794,3073.7,3072.3,0.39218948]
[1764210692320,3.25340794,3073.7,3072.4,0.4698]
[1764210692321,0.30235271,3073.6,3072.4,0.4698]
[1764210692883,0.30235271,3073.6,3072.5,0.21]
[1764210693108,1.00625886,3073.5,3072.4,0.4698]
[1764210693308,0.1,3073.3,3072.4,0.4698]
[1764210693498,0.30235271,3073.3,3072.4,0.4698]
[1764210693911,6.81022723,3073.2,3072.4,0.4698]
[1764210694096,0.30235271,3073.1,3072.4,0.4698]
[1764210695115,0.30235271,3073.0,3072.4,0.4698]
[1764210695406,0.30235271,3072.9,3072.4,0.4698]
[1764210695734,0.30310343,3072.8,3072.4,0.4698]
[1764210695895,3.25434,3072.9,3072.4,0.4698]
[1764210696090,0.30311581,3072.8,3072.7,0.4621]
[1764210696290,0.30311581,3072.8,3072.4,0.4698]
[1764210696503,0.30336382,3072.7,3072.4,0.4698]
[1764210696824,0.21,3073.4,3072.4,0.4698]
[1764210697129,0.30337602,3073.3,3072.6,0.4621]
[1764210697289,0.30337602,3073.2,3072.6,0.4621]
[1764210697488,0.30337602,3073.1,3072.6,0.4621]
[1764210697696,0.30337602,3073.0,3072.6,0.9319]
[1764210698000,0.30337602,3072.9,3072.7,0.4698]
[1764210698223,3.25356936,3073.6,3072.7,0.4698]
[1764210698224,0.30337602,3072.8,3072.7,0.4698]
[1764210698590,0.30337602,3072.8,3072.7,0.9319]
[1764210698913,3.25395116,3073.2,3072.7,0.9319]
[1764210699110,0.30371623,3073.1,3072.8,0.4698]
[1764210699416,0.30371623,3073.0,3072.8,0.4698]
[1764210699716,0.30371623,3072.9,3072.8,0.4698]
[1764210700017,0.30371623,3073.1,3072.8,0.4698]
[1764210700314,0.72759411,3073.9,3072.8,0.4698]
[1764210700315,0.25371623,3073.0,3072.8,0.4698]
[1764210700621,3.25376049,3073.4,3072.8,0.4698]
[1764210700805,0.72559411,3073.7,3072.8,0.4698]
[1764210701410,0.88089411,3073.7,3072.7,0.21]
[1764210701712,1.06408004,3073.6,3072.5,0.4696]
[1764210701921,1.06408004,3073.6,3072.6,0.21]
[1764210702290,6.5072393,3073.5,3072.6,0.21]
[1764210702491,6.5072393,3073.5,3072.5,0.4696]
[1764210702691,0.1553,3073.4,3072.1,1.51991175]
[1764210702912,1.1080239,3073.4,3072.2,0.4696]
[1764210703114,6.5072393,3073.5,3072.2,0.4696]
[1764210703323,6.5072393,3073.5,3072.2,1.32191175]
[1764210703723,6.5072393,3073.5,3072.3,0.4696]
[1764210704020,6.5072393,3073.5,3072.1,0.198]
[1764210704021,0.98089411,3073.4,3072.1,0.198]
[1764210704201,1.39953727,3073.3,3072.1,0.198]
[1764210704405,9.76181178,3073.2,3072.1,0.6676]
[1764210704602,10.12711178,3073.2,3072.1,0.6676]
[1764210704919,0.2553,3073.1,3072.1,0.6676]
[1764210705504,0.1553,3073.0,3072.1,0.198]
[1764210705700,1.17801118,3073.0,3072.1,0.198]
[1764210705903,0.31,3073.1,3072.1,0.198]
[1764210706093,6.87317452,3073.2,3072.1,0.6676]
[1764210706519,6.87317452,3073.2,3072.1,1.51991175]
[1764210706912,6.87317452,3073.2,3072.2,0.4696]
[1764210707109,9.97181178,3073.2,3072.1,1.05031175]
[1764210707319,11.14981756,3073.2,3072.2,0.4696]
[1764210707522,0.1553,3073.1,3072.1,0.198]
[1764210707696,0.1,3073.0,3072.1,0.198]
[1764210708191,1.12498176,3073.0,3072.1,0.198]
[1764210708397,1.12498176,3073.0,3072.1,0.6676]
[1764210708598,6.50850986,3072.9,3072.1,0.001]
[1764210708812,9.76276479,3072.9,3072.1,0.001]
[1764210709095,0.1553,3072.2,3072.1,0.001]
[1764210709419,0.21,3072.7,3072.1,0.001]
[1764210709927,1.09536589,3072.7,3072.1,0.1934]
[1764210710123,3.25425493,3072.9,3072.1,0.663]
[1764210710316,6.71825277,3073.1,3072.1,0.663]
[1764210710623,6.71825277,3073.1,3072.2,0.4696]
[1764210711720,6.50825277,3073.1,3072.2,0.4696]
[1764210712223,0.30467563,3073.0,3072.2,0.4696]
[1764210712521,0.30467563,3072.9,3072.2,0.4696]
[1764210712700,3.25446675,3072.7,3072.2,0.4696]
[1764210712900,0.30467563,3072.6,3072.2,0.64213118]
[1764210713098,0.30467563,3072.5,3072.2,0.64213118]
[1764210713321,0.30471052,3072.4,3072.3,0.4696]
[1764210713822,0.30471052,3072.4,3072.3,0.4715]
[1764210714025,0.30471052,3072.4,3072.3,0.9411]
[1764210714397,1.052e-05,3072.4,3072.3,0.9411]
[1764210714630,6.9666042,3073.8,3072.3,0.9411]
[1764210714829,6.5066042,3073.8,3072.4,1.87931373]
[1764210714994,0.46,3073.7,3072.5,0.21]
[1764210715194,0.46,3073.7,3072.5,0.6796]
[1764210715526,6.9666042,3073.8,3072.5,1.53881825]
[1764210715827,0.56,3073.7,3072.6,0.21]
[1764210716145,0.56,3073.7,3072.5,0.21]
[1764210716146,0.002,3073.1,3072.5,0.21]
[1764210716428,0.002,3073.1,3072.6,0.4696]
[1764210716597,0.002,3073.1,3073.0,0.4715]
[1764210717327,0.002,3073.1,3073.0,0.9411]
[1764210717504,0.002,3073.1,3072.8,0.85921825]
[1764210717822,0.002,3073.1,3072.7,1.06921825]
[1764210718121,0.002,3073.1,3072.8,0.4696]
[1764210718420,0.002,3073.1,3072.6,1.06921825]
[1764210718625,0.002,3073.1,3072.6,1.53881825]
[1764210718999,0.002,3073.1,3072.6,1.06921825]
[1764210719924,0.002,3073.1,3072.6,1.53881825]
[1764210720100,0.002,3073.1,3072.7,0.47934852]
[1764210720295,0.002,3073.1,3072.7,0.4696]
[1764210720829,0.002,3073.1,3072.7,0.6796]
[1764210721124,0.002,3073.1,3073.0,0.4715]
[1764210721614,0.002,3073.1,3073.0,0.9411]
[1764210721926,0.002,3073.1,3073.0,0.92482502]
[1764210722299,0.002,3073.1,3073.0,1.13482502]
[1764210722513,0.002,3073.1,3073.0,1.57374246]
[1764210722714,0.002,3073.1,3073.0,0.92482502]
[1764210722931,0.0964,3073.1,3072.7,0.85921825]
[1764210723130,0.002,3073.1,3072.8,1.06921825]
[1764210723310,0.002,3073.1,3072.9,0.21]
[1764210723513,0.002,3073.1,3073.0,0.4715]
[1764210723741,0.002,3073.1,3073.0,0.9411]
[1764210724142,0.002,3073.1,3073.0,0.4715]
[1764210724347,0.002,3073.1,3073.0,0.9411]
[1764210724720,0.002,3073.1,3073.0,1.33071825]
[1764210724915,0.002,3073.1,3073.0,0.76614605]
[1764210725110,0.002,3073.1,3073.0,1.1511]
[1764210726652,0.002,3073.1,3073.0,0.4715]
[1764210726857,0.002,3073.1,3073.0,1.1511]
[1764210727156,0.002,3073.1,3073.0,0.9411]
[1764210727327,0.002,3073.1,3073.0,0.4715]
[1764210728020,0.002,3073.1,3073.0,0.21]
[1764210728216,0.0911,3073.1,3072.5,0.85762879]
[1764210728567,0.0911,3073.1,3072.6,0.21]
[1764210728922,0.002,3073.1,3072.6,0.6737]
[1764210729131,0.002,3073.1,3073.0,0.4575]
[1764210729359,0.002,3073.1,3072.7,0.21]
[1764210729529,0.002,3073.1,3073.0,0.4575]
[1764210730062,0.002,3073.1,3072.7,0.21]
[1764210730258,0.002,3073.1,3073.0,0.4753]
[1764210730748,0.002,3073.1,3072.7,0.21]
[1764210730918,0.002,3073.1,3072.7,0.6769]
[1764210731319,0.002,3073.1,3072.8,0.4669]
[1764210731554,0.002,3073.1,3072.7,0.21]
[1764210731755,0.002,3073.1,3072.3,1.32452879]
[1764210731956,0.78242149,3073.1,3072.4,0.21]
[1764210732156,0.4783,3073.1,3072.4,0.21]
[1764210733425,3.25414904,3073.0,3072.4,0.21]
[1764210733621,6.50829808,3073.0,3072.4,0.21]
[1764210733822,0.1686,3072.9,3072.4,0.21]
[1764210734828,0.1686,3072.9,3072.4,0.6769]
[1764210735038,0.1686,3072.9,3072.5,0.21]
[1764210735234,0.3422749,3072.8,3072.1,0.85862879]
[1764210735450,0.073,3072.2,3072.1,0.001]
[1764210735638,0.073,3072.2,3072.1,0.211]
[1764210736164,3.32799641,3072.2,3072.1,0.001]
[1764210736678,3.80029641,3072.2,3072.1,0.001]
[1764210736824,4.20452464,3072.2,3072.1,0.001]
[1764210737147,9.09603025,3072.2,3072.1,0.001]
[1764210737560,0.82559411,3071.9,3070.3,1.32452879]
[1764210737758,0.72559411,3071.7,3070.1,0.1912]
[1764210737945,0.1,3071.1,3070.4,0.21]
[1764210738150,0.073,3070.5,3070.4,0.21]
[1764210738332,0.073,3070.5,3070.1,0.1912]
[1764210738333,0.4763,3071.0,3070.1,0.1912]
[1764210738654,0.45899181,3070.9,3070.1,0.1912]
[1764210738857,0.45899181,3070.9,3070.2,0.21]
[1764210739240,0.1553,3070.9,3070.2,0.21]
[1764210739659,3.25648039,3070.8,3070.2,0.21]
[1764210739824,3.25648039,3070.8,3070.1,0.1912]
[1764210740029,3.25648039,3070.8,3070.1,0.001]
[1764210740030,0.81747804,3070.7,3070.1,0.001]
[1764210740662,1.54307215,3070.7,3070.1,0.001]
[1764210741081,0.1,3070.6,3070.1,0.001]
[1764210741232,0.073,3070.2,3070.1,0.001]
[1764210741555,3.3301168,3070.2,3070.1,0.001]
[1764210742166,3.98881903,3070.2,3070.1,0.001]
[1764210742469,4.46101903,3070.2,3070.1,0.001]
[1764210742841,3.98881903,3070.2,3070.1,0.001]
[1764210743049,3.3301168,3070.2,3070.1,0.001]
[1764210743263,3.8023168,3070.2,3070.1,0.001]
[1764210745440,3.3301168,3070.2,3070.1,0.001]
[1764210745847,4.52791091,3070.2,3070.1,0.001]
[1764210746164,4.62791091,3070.2,3070.1,0.001]
[1764210746333,5.41639255,3070.2,3070.1,0.001]
[1764210747041,0.72559411,3070.1,3069.8,0.001]
[1764210747245,4.99620561,3069.9,3069.8,0.001]
[1764210747562,5.40170961,3069.9,3069.8,0.001]
[1764210747767,0.1,3069.4,3069.3,0.001]
[1764210747968,4.78845098,3069.4,3069.3,0.001]
[1764210748174,5.26465098,3069.4,3069.3,0.001]
[1764210748854,5.05465098,3069.4,3069.3,0.001]
[1764210749055,5.26465098,3069.4,3069.3,0.001]
[1764210750391,5.39519906,3069.4,3069.3,0.001]
[1764210751364,0.1,3069.1,3069.0,0.001]
[1764210751562,5.40240961,3069.1,3069.0,0.001]
[1764210751768,5.87860961,3069.1,3069.0,0.001]
[1764210751974,9.13689379,3069.1,3069.0,0.001]
[1764210752376,9.80113131,3069.1,3069.0,0.001]
[1764210752560,9.48262861,3069.1,3069.0,0.001]
[1764210754370,1.13109811,3069.0,3068.3,0.001]
[1764210754574,1.98499811,3069.0,3068.3,0.001]
[1764210754873,1.26949411,3069.0,3068.3,0.001]
[1764210755071,2.36797575,3069.0,3068.3,0.001]
[1764210755375,2.77347975,3069.0,3068.3,0.001]
[1764210755677,0.1,3068.7,3068.3,0.001]
[1764210755866,4.99750561,3068.7,3068.3,0.001]
[1764210756062,9.56450965,3068.7,3068.3,0.001]
[1764210756264,0.1,3068.4,3068.3,0.001]
[1764210756467,0.3772,3068.4,3068.3,0.001]
[1764210756784,0.8534,3068.4,3068.3,0.001]
[1764210757280,0.1672,3068.4,3068.3,0.001]
[1764210757453,0.4762,3069.8,3068.3,0.9432]
[1764210757651,6.61529464,3069.7,3068.5,0.4753]
[1764210757851,6.51529464,3069.7,3068.5,0.4753]
[1764210758175,3.2573774,3070.0,3068.5,0.4753]
[1764210758176,0.21,3070.0,3068.6,3.72571509]
[1764210758375,0.93559411,3070.0,3069.6,0.6558]
[1764210758558,6.61444578,3070.1,3069.6,1.1227]
[1764210759069,0.72559411,3070.0,3069.6,1.1227]
[1764210759446,0.72559411,3070.0,3069.6,0.6558]
[1764210759642,0.72559411,3070.0,3069.4,0.1805]
[1764210759879,0.72559411,3069.8,3069.4,0.1805]
[1764210760076,0.82559411,3069.8,3069.4,0.1805]
[1764210760277,0.82559411,3069.8,3069.2,0.1851]
[1764210761076,0.72559411,3069.8,3069.7,0.4313]
[1764210761279,0.72559411,3069.8,3069.7,0.9287]
[1764210761677,3.25743509,3069.9,3069.7,0.9287]
[1764210761882,0.72559411,3070.1,3069.2,0.1851]
[1764210762083,0.6327,3069.8,3069.2,0.1851]
[1764210762455,0.6327,3069.8,3068.7,0.4974]
[1764210762456,0.1,3069.6,3068.7,0.4974]
[1764210762658,1.03559411,3069.7,3068.7,0.4974]
[1764210763360,1.57259467,3069.7,3068.7,0.4974]
[1764210763758,0.31,3069.7,3068.7,0.4974]
[1764210764087,3.25765799,3069.7,3069.6,0.6664]
[1764210764395,3.2575412,3069.8,3069.6,0.6664]
[1764210764558,3.2575412,3069.8,3069.6,1.1638]
[1764210764758,3.98313531,3069.8,3069.7,0.9787]
[1764210765383,3.98313531,3069.8,3069.6,0.1851]
[1764210765587,7.24067651,3069.8,3069.3,0.6825]
[1764210765763,3.98313531,3069.8,3069.7,0.4813]
[1764210766085,7.34067651,3069.8,3069.3,0.6825]
[1764210766468,7.34067651,3069.8,3069.3,0.1851]
[1764210766980,7.34067651,3069.8,3069.1,0.1851]
[1764210767173,0.30276827,3069.7,3069.1,0.1851]
[1764210767375,6.61509808,3069.8,3069.1,0.6825]
[1764210767575,0.3030694,3069.7,3069.1,0.6825]
[1764210767969,6.5155069,3069.6,3069.1,0.6825]
[1764210768613,4.2659115,3069.2,3068.6,0.4974]
[1764210768777,0.30323524,3069.1,3068.6,0.4974]
[1764210769105,0.30323524,3069.0,3068.6,0.4974]
[1764210769396,0.30323524,3068.9,3068.6,0.4974]
[1764210769588,0.1,3069.2,3068.6,0.4974]
[1764210769764,0.30341881,3069.1,3068.3,0.001]
[1764210769963,6.51720542,3068.8,3068.3,0.001]
[1764210770281,0.30354977,3068.7,3068.4,0.4974]
[1764210770974,0.002,3069.8,3068.6,4.6472115]
[1764210771159,0.002,3069.8,3069.4,0.1851]
[1764210771354,0.002,3069.8,3069.7,0.4813]
[1764210771908,0.002,3069.8,3069.7,0.9787]
[1764210772264,0.002,3069.8,3069.7,1.1887]
[1764210772459,0.002,3069.8,3069.7,0.4813]
[1764210772686,0.002,3069.8,3069.4,0.1851]
[1764210773085,0.102,3069.8,3069.4,0.1851]
[1764210773295,0.102,3069.8,3068.7,0.46472115]
[1764210773296,0.5884,3069.8,3068.9,0.1851]
[1764210773783,0.1,3069.7,3068.9,0.6825]
[1764210773974,3.25775345,3069.6,3068.9,0.6825]
[1764210774175,6.5155069,3069.6,3068.9,0.6825]
[1764210774964,3.25775345,3069.6,3068.9,0.6825]
[1764210775182,6.5155069,3069.6,3068.9,0.6825]
[1764210775689,7.17725759,3069.6,3068.9,0.6825]
[1764210776595,0.82559411,3069.5,3068.9,0.1851]
[1764210777267,0.82559411,3069.5,3068.6,0.4974]
[1764210778169,0.72559411,3069.3,3068.3,0.001]
[1764210778404,0.1,3069.2,3068.3,0.001]
[1764210778736,0.1,3069.0,3068.3,0.001]
[1764210778993,0.2895,3068.9,3068.3,0.001]
[1764210779492,0.7759,3068.9,3068.3,0.001]
[1764210779871,0.4864,3068.8,3068.3,0.001]
[1764210780063,6.51741778,3068.7,3068.3,0.001]
[1764210780265,0.2505,3068.4,3068.3,0.001]
[1764210781067,0.7346,3068.4,3068.1,0.001]
[1764210781299,0.1048,3068.2,3068.1,0.001]
[1764210781504,0.83039411,3068.2,3068.1,0.001]
[1764210781702,1.31679411,3068.2,3068.1,0.001]
[1764210781884,1.90395427,3068.2,3068.1,0.001]
[1764210782195,5.16319421,3068.2,3068.1,0.001]
[1764210782584,9.58742037,3068.2,3068.1,0.001]
[1764210782779,4.67679421,3068.2,3068.1,0.001]
[1764210782985,5.16319421,3068.2,3068.1,0.001]
[1764210783372,4.67679421,3068.2,3068.1,0.001]
[1764210783572,3.25860271,3068.8,3068.1,0.6674]
[1764210783795,6.51727218,3068.8,3068.3,0.4813]
[1764210784108,3.25828418,3069.1,3068.7,0.4813]
[1764210784310,0.72559411,3069.0,3068.7,0.4813]
[1764210785178,0.1,3068.9,3068.2,0.4974]
[1764210786307,6.51720542,3068.8,3068.2,0.4974]
[1764210787197,6.61720542,3068.8,3068.1,0.1861]
[1764210788778,6.61720542,3068.8,3068.1,0.6694]
[1764210789176,6.61720542,3068.8,3068.7,0.4813]
[1764210789177,3.25860271,3068.8,3068.7,0.4813]
[1764210789485,3.25804803,3069.4,3068.7,0.4813]
[1764210789709,3.25804803,3069.4,3068.9,0.4813]
[1764210790083,3.25804803,3069.4,3069.0,0.478]
[1764210790280,0.72559411,3069.5,3069.0,0.478]
[1764210791081,0.21,3069.7,3069.4,0.4538]
[1764210791082,3.25765604,3069.7,3069.4,0.4538]
[1764210791582,6.51531208,3069.7,3069.4,0.4538]
[1764210791882,6.51531208,3069.7,3069.1,0.1974]
[1764210791883,0.72559411,3069.6,3069.1,0.1974]
[1764210792298,6.51571916,3069.5,3069.2,0.478]
[1764210792497,6.51571916,3069.5,3069.1,0.1974]
[1764210792707,6.51571916,3069.5,3069.1,0.6754]
[1764210793610,3.25785958,3069.5,3069.1,0.6754]
[1764210793806,6.51571916,3069.5,3069.1,0.6754]
[1764210794398,0.72559411,3069.6,3069.1,0.1974]
[1764210795211,0.72559411,3069.6,3068.8,0.478]
[1764210795413,0.2783,3069.2,3068.7,0.21]
[1764210795828,0.8361,3069.2,3068.4,0.478]
[1764210796124,0.8361,3069.2,3068.3,0.24525193]
[1764210796125,0.1,3068.9,3068.3,0.24525193]
[1764210796287,0.1,3068.9,3068.2,0.21]
[1764210796600,0.1,3068.9,3068.3,0.478]
[1764210796601,6.51720542,3068.8,3068.3,0.478]
[1764210796912,6.51720542,3068.8,3068.1,0.6641]
[1764210797408,0.1,3068.9,3068.1,0.6641]
[1764210797610,0.72559411,3068.8,3068.1,0.6641]
[1764210797811,0.72559411,3068.8,3068.2,0.478]
[1764210798001,0.72559411,3068.8,3068.7,0.4538]
[1764210798525,3.98419682,3068.8,3068.7,0.4538]
[1764210798691,7.24279953,3068.8,3068.2,0.478]
[1764210799416,3.98419682,3068.8,3068.2,0.478]
[1764210800020,7.24279953,3068.8,3068.2,0.478]
[1764210800220,7.24279953,3068.8,3068.3,0.24525193]
[1764210800720,7.24279953,3068.8,3068.3,0.72325193]
[1764210801421,7.24279953,3068.8,3068.3,0.24525193]
[1764210802218,7.24279953,3068.8,3068.1,0.6641]
[1764210802219,12.01112559,3068.8,3068.4,0.24525193]
[1764210802420,8.75252288,3068.8,3068.4,0.24525193]
[1764210802595,8.75252288,3068.8,3068.1,0.6641]
[1764210804123,3.25803281,3069.4,3068.1,0.6641]
[1764210804124,0.1,3069.3,3068.7,0.4538]
[1764210804327,9.77365962,3069.5,3068.8,0.4538]
[1764210804524,6.51614374,3069.3,3068.2,0.688]
[1764210804820,0.1,3069.0,3068.3,0.688]
[1764210805022,0.1,3069.0,3068.3,0.001]
[1764210805227,0.72559411,3069.2,3068.4,0.478]
[1764210805411,0.72559411,3069.2,3068.9,0.4538]
[1764210805617,0.72759411,3069.2,3068.9,0.4538]
[1764210805817,0.72759411,3069.2,3069.1,0.4538]
[1764210806623,3.98577213,3069.2,3069.1,1.1292]
[1764210807131,11.50481257,3069.2,3068.3,0.001]
[1764210807434,11.50481257,3069.2,3068.4,0.21]
[1764210807830,11.50481257,3069.2,3068.4,0.478]
[1764210808128,3.26019415,3069.2,3069.1,0.6512]
[1764210808614,0.002,3069.2,3068.7,0.478]
[1764210809028,6.5183805,3069.2,3068.7,0.478]
[1764210809245,3.26017802,3069.2,3069.1,0.6512]
[1764210809410,3.26017802,3069.2,3069.1,1.1292]
[1764210809411,0.002,3069.2,3069.1,1.1292]
[1764210810847,0.002,3069.2,3069.1,4.38748418]
[1764210811002,0.002,3069.2,3069.1,2.00039235]
[1764210813001,0.002,3069.2,3069.1,1.1292]
[1764210813204,0.002,3069.2,3069.1,4.38748418]
[1764210813406,0.002,3069.2,3069.1,5.24343938]
[1764210813839,0.002,3069.5,3069.3,0.405504]
[1764210814019,0.002,3069.8,3069.5,0.405504]
[1764210814219,0.002,3069.8,3069.7,1.71732626]
[1764210814504,0.002,3069.8,3069.7,3.37317973]
[1764210814717,0.002,3069.8,3069.7,6.63082705]
[1764210815297,0.002,3069.8,3069.7,5.77280479]
[1764210815902,0.002,3069.8,3069.7,5.25721068]
[1764210816111,0.002,3069.8,3069.7,5.98280479]
[1764210817339,0.002,3069.8,3069.7,1.1418]
[1764210820238,0.002,3069.8,3069.7,0.4538]
[1764210820438,0.002,3069.8,3069.7,0.6638]
[1764210820655,0.002,3069.8,3069.7,0.21]
[1764210821017,0.002,3069.8,3069.3,0.4966]
[1764210821322,0.002,3069.8,3069.4,0.21]
[1764210821541,0.002,3069.8,3069.1,0.1974]
[1764210822045,0.002,3069.8,3069.2,0.21]
[1764210822046,0.4765,3069.8,3069.2,0.21]
[1764210822247,0.002,3069.8,3069.2,0.21]
[1764210822539,0.002,3069.8,3069.1,0.1998]
[1764210822841,0.002,3069.8,3069.2,0.21]
[1764210823637,6.5170824,3069.8,3069.2,0.21]
[1764210823839,10.49268184,3069.8,3069.5,0.001]
[1764210824240,6.9915824,3069.8,3069.5,0.001]
[1764210824543,0.2653,3069.6,3069.5,0.001]
[1764210825042,0.7377,3069.6,3069.5,0.001]
[1764210825723,3.99545345,3069.6,3069.5,0.001]
[1764210826041,4.09545345,3069.6,3069.5,0.001]
[1764210826244,5.99896964,3069.6,3069.5,0.001]
[1764210827148,0.002,3069.8,3069.5,0.4682]
[1764210827343,0.002,3070.5,3070.1,0.667]
[1764210827520,0.002,3070.5,3070.4,0.4672]
[1764210827727,0.002,3070.5,3070.4,0.9638]
[1764210828029,0.002,3070.5,3070.4,0.21]
[1764210828223,0.002,3070.5,3070.4,0.6772]
[1764210828642,0.002,3070.5,3070.4,0.4672]
[1764210829433,0.002,3070.5,3070.3,0.21]
[1764210829642,0.002,3070.5,3070.1,0.1998]
[1764210829826,0.002,3070.5,3070.2,0.21]
[1764210830639,0.002,3070.5,3070.1,0.1998]
[1764210830850,0.002,3070.5,3070.1,0.4098]
[1764210831844,0.002,3070.5,3070.1,0.1998]
[1764210832015,0.002,3070.5,3070.1,0.4098]
[1764210833861,0.002,3070.5,3070.0,0.21]
[1764210834355,0.002,3070.5,3069.9,0.1998]
[1764210834519,0.4765,3070.5,3069.9,0.4098]
[1764210834714,0.4765,3070.5,3069.6,0.1998]
[1764210834921,0.4765,3070.5,3069.7,0.21]
[1764210835324,0.4765,3070.5,3069.6,0.1998]
[1764210835647,0.1,3070.4,3069.7,0.21]
[1764210836034,9.77103213,3070.3,3069.5,0.001]
[1764210836247,1.03455321,3070.2,3069.5,0.211]
[1764210836427,1.50905321,3070.2,3069.5,0.001]
[1764210837429,0.4745,3070.1,3069.5,0.001]
[1764210837665,0.4508,3069.6,3069.5,0.001]
[1764210838027,3.70855345,3069.6,3069.5,0.001]
[1764210839129,4.18095345,3069.6,3069.5,0.001]
[1764210839370,3.70855345,3069.6,3069.5,0.001]
[1764210839890,1.76014732,3070.2,3069.5,0.4682]
[1764210839891,1.03455321,3070.2,3069.5,0.4682]
[1764210840168,0.002,3070.5,3069.7,0.4672]
[1764210840367,0.002,3070.5,3069.8,0.21]
[1764210841835,0.4765,3070.5,3069.9,0.21]
[1764210842040,0.72559411,3070.3,3069.9,0.21]
[1764210842363,0.72559411,3070.3,3069.5,0.4976]
[1764210842364,0.72559411,3070.3,3070.0,0.24525193]
[1764210843235,0.72559411,3070.3,3070.2,0.4672]
[1764210843432,0.002,3070.5,3070.2,0.4672]
[1764210843633,0.002,3070.5,3070.4,0.4672]
[1764210843873,0.002,3070.5,3070.4,0.71245193]
[1764210844038,0.002,3070.5,3070.4,1.20905193]
[1764210845667,0.2638,3070.5,3070.4,0.24525193]
[1764210845872,0.7362,3070.5,3070.4,0.24525193]
[1764210846048,4.71859267,3070.5,3070.4,0.24525193]
[1764210846366,12.02971723,3070.5,3069.8,0.24525193]
[1764210846564,11.55731723,3070.5,3069.8,0.24525193]
[1764210846867,3.98439267,3070.5,3069.9,0.24525193]
[1764210847078,0.002,3070.5,3070.4,0.4672]
[1764210847258,3.25879856,3070.5,3070.4,0.4672]
[1764210847569,3.25879856,3070.5,3069.7,3.25755618]
[1764210847570,0.72559411,3070.4,3069.5,0.001]
[1764210847733,0.72559411,3070.4,3069.7,0.4781]
[1764210847933,0.72559411,3070.4,3069.5,0.4791]
[1764210848271,6.51402142,3070.3,3069.7,0.21]
[1764210848744,11.32039224,3070.3,3069.5,0.4791]
[1764210849065,10.82089224,3070.3,3069.5,0.001]
[1764210849267,6.51402142,3070.3,3069.5,0.6891]
[1764210849469,0.002,3070.5,3069.5,3.94695062]
[1764210849767,0.002,3070.5,3069.6,0.4781]
[1764210849768,0.72559411,3070.4,3069.6,0.4781]
[1764210850134,6.51402142,3070.3,3069.6,0.4781]
[1764210850371,11.28957354,3070.3,3069.7,0.21]
[1764210850569,1.19429411,3070.2,3069.7,0.21]
[1764210850771,1.19429411,3070.2,3069.5,0.001]
[1764210850772,0.4573,3069.8,3069.5,0.001]
[1764210850946,0.4578,3069.6,3069.5,0.001]
[1764210851637,0.7353,3069.6,3069.5,0.001]
[1764210852038,3.98334756,3069.6,3069.5,0.001]
[1764210852276,5.95172362,3069.6,3069.5,0.001]
[1764210852452,6.05172362,3069.6,3069.5,0.001]
[1764210857657,6.26172362,3069.6,3069.5,0.001]
[1764210860473,6.66722762,3069.6,3069.5,0.001]
[1764210860671,0.405504,3069.4,3069.1,0.001]
[1764210860871,0.72559411,3069.5,3068.8,0.001]
[1764210860872,0.405504,3069.1,3068.8,0.001]
[1764210861059,0.962004,3068.9,3068.8,0.001]
[1764210861266,0.862004,3068.9,3068.8,0.001]
[1764210861564,1.427904,3068.9,3068.8,0.001]
[1764210861770,1.66425381,3068.9,3068.8,0.001]
[1764210863046,5.64834444,3068.9,3068.8,0.001]
[1764210866764,5.24284044,3068.9,3068.8,0.001]
[1764210866967,3.25849652,3068.9,3068.8,0.4976]
[1764210867170,3.25849652,3068.9,3068.8,0.9826]